[Event "USA-ch Women 2020"]
[Site "Saint Louis"]
[Date "2020.10.21"]
[Round "3.2"]
[White "Nguyen, Emily"]
[Black "Abrahamyan, Tatev"]
[Result "1-0"]
[ECO "D37"]
[WhiteElo "2280"]
[BlackElo "2358"]
[Annotator "RC"]
[PlyCount "131"]
[EventDate "2020.10.21"]
[EventType "tourn"]
[EventCountry "USA"]
[SourceTitle "playchess.com"]
[Source "ChessBase"]
[SourceQuality "1"]
[TimeControl "1500+5"]

1. d4 {[%emt 0:00:05]} Nf6 {[%emt 0:00:05]} 2. Nf3 {[%emt 0:00:02]} e6 {[%emt 0:00:02]} 3. c4 {[%emt 0:00:01]} d5 {[%emt 0:00:01]} 4. Nc3 {[%emt 0:00:03]} dxc4 {[%emt 0:00:02]} 5. e4 {[%emt 0:00:07]} b5 {[%emt 0:00:05]} 6. e5 {[%emt 0:00:06]} Nd5 {[%emt 0:00:06]} 7. Nxb5 {[%emt 0:00:07]} Nb6 {[%emt 0:00:02]} 8. Be2 {[%emt 0:00:52]} Bb7 {[%emt 0:00:41]} 9. Be3 {[%emt 0:00:45]} Qd7 {[%emt 0:02:15]} 10. Nc3 {[%emt 0:00:18]} Be7 {[%emt 0:00:19]} 11. O-O {[%emt 0:00:10]} Nc6 {[%emt 0:00:12]} 12. a3 {[%emt 0:01:02]} Na5 {[%emt 0:01:03]} 13. Qc2 {[%emt 0:01:19]} O-O-O {[%emt 0:00:38]} 14. Rad1 {[%emt 0:02:14]} Kb8 {[%emt 0:04:27]} 15. Nd2 {[%emt 0:01:22]} f5 {[%emt 0:00:46]} 16. exf6 {[%emt 0:02:21]} gxf6 {[%emt 0:00:06]} 17. Nce4 {[%emt 0:00:11]} Rhg8 {[%emt 0:00:41]} 18. Bf3 {[%emt 0:00:32]} Bd5 {[%emt 0:02:54]} 19. Nc3 {[%emt 0:02:16]} Bxf3 {[%emt 0:01:36]} 20. Nxf3 {[%emt 0:00:00]} Nd5 {[%emt 0:01:04]} 21. Nxd5 {[%emt 0:01:53]} Qxd5 {[%emt 0:00:05]} 22. Qe2 {[%emt 0:00:05]} Bd6 {[%emt 0:00:59]} 23. g3 {[%emt 0:00:56]} h5 {[%emt 0:00:58]} 24. Nh4 {[%emt 0:00:21]} Rg4 {[%emt 0:00:15]} 25. Qf3 {[%emt 0:02:07]} Rdg8 {[%emt 0:00:14]} 26. Qxd5 {[%emt 0:01:19]} exd5 {[%emt 0:00:00]} 27. Nf5 {[%emt 0:00:03]} Re4 {[%emt 0:00:17]} 28. Rfe1 {[%emt 0:01:03]} Kc8 {[%emt 0:01:52]} 29. Bd2 {[%emt 0:00:40]} Rxe1+ {[%emt 0:01:21]} 30. Rxe1 {[%emt 0:00:00]} Nb3 {[%emt 0:00:05]} 31. Bc3 {[%emt 0:00:48]} Kd7 {[%emt 0:00:13]} 32. h4 {[%emt 0:00:03]} Bf8 {[%emt 0:00:36]} 33. Kg2 {[%emt 0:00:19]} a5 {[%emt 0:01:16]} 34. Kf3 {[%emt 0:00:30]} Rg4 {[%emt 0:00:36]} 35. Ne3 {[%emt 0:01:48]} Re4 {[%emt 0:00:59]} 36. Nxd5 {[%emt 0:00:06]} Rxe1 {[%emt 0:00:01]} 37. Bxe1 {[%emt 0:00:01]} Nxd4+ {[%emt 0:00:20]} 38. Ke4 {[%emt 0:00:06]} Nb5 {[%emt 0:00:25]} 39. Nxf6+ {[%emt 0:00:39]} Ke6 {[%emt 0:00:02]} 40. Nxh5 {[%emt 0:00:01]} c3 {[%emt 0:00:02]} 41. Nf4+ {[%emt 0:00:10]} Kf7 {[%emt 0:00:04]} 42. Bxc3 {[%emt 0:00:13]} Nxc3+ {[%emt 0:00:01]} 43. bxc3 {[%emt 0:00:01]} Bxa3 {[%emt 0:00:02]} 44. g4 {[%emt 0:00:37]} Bb2 {[%emt 0:00:04]} 45. Kd3 {[%emt 0:00:02]} Bc1 {[%emt 0:00:20]} 46. Nd5 {[%emt 0:00:12]} c6 {[%emt 0:00:02]} 47. Ne3 {[%emt 0:00:00]} a4 {[%emt 0:00:11]} 48. Kc2 {[%emt 0:00:17]} Ba3 {[%emt 0:00:03]} 49. f4 {[%emt 0:00:11]} Bd6 {[%emt 0:00:06]} 50. f5 {[%emt 0:00:09]} Bg3 {[%emt 0:00:02]} 51. Ng2 {[%emt 0:00:02]} Kf6 {[%emt 0:00:04]} 52. Kb2 {[%emt 0:00:07]} Be5 {[%emt 0:00:03]} 53. Ka3 {[%emt 0:00:05]} Bxc3 {[%emt 0:00:02]} 54. Kxa4 {[%emt 0:00:01]} Bd4 {[%emt 0:00:08]} 55. Kb3 {[%emt 0:00:02]} Ke5 {[%emt 0:00:04]} 56. Kc4 {[%emt 0:00:02]} c5 {[%emt 0:00:02]} 57. h5 {[%emt 0:00:14]} Kf6 {[%emt 0:00:03]} 58. Nf4 {[%emt 0:00:10]} Bf2 {[%emt 0:00:18]} 59. Ne6 {[%emt 0:00:05]} Be3 {[%emt 0:00:02]} 60. Kd5 {[%emt 0:00:15]} Bf2 {[%emt 0:00:13]} 61. Ke4 {[%emt 0:00:02]} c4 {[%emt 0:00:03]} 62. g5+ {[%emt 0:00:01]} Kf7 {[%emt 0:00:01]} 63. h6 {[%emt 0:00:11]} c3 {[%emt 0:00:10]} 64. Kd3 {[%emt 0:00:03]} c2 {[%emt 0:00:19]} 65. Kxc2 {[%emt 0:00:02]} Be3 {[%emt 0:00:00]} 66. h7 {[%emt 0:00:10]} 1-0

[Event "USA-ch Women 2020"]
[Site "Saint Louis"]
[Date "2020.10.22"]
[Round "6.1"]
[White "Cervantes Landeiro, Thalia"]
[Black "Krush, Irina"]
[Result "0-1"]
[ECO "A41"]
[WhiteElo "2311"]
[BlackElo "2429"]
[Annotator "ChessBase"]
[PlyCount "178"]
[EventDate "2020.10.21"]
[EventType "tourn"]
[EventCountry "USA"]
[SourceTitle "playchess.com"]
[Source "ChessBase"]
[SourceQuality "1"]
[TimeControl "1500+5"]

1. d4 {[%emt 0:00:05]} d6 {[%emt 0:00:05]} 2. c4 {[%emt 0:00:03]} e5 {[%emt 0:00:06]} 3. d5 {[%emt 0:00:02]} Be7 {[%emt 0:00:03]} 4. Nc3 {[%emt 0:01:20]} Bg5 {[%emt 0:00:19]} 5. e4 {[%emt 0:04:56]} Bxc1 {[%emt 0:00:19]} 6. Qxc1 {[%emt 0:00:30]} a5 {[%emt 0:00:39]} 7. Be2 {[%emt 0:01:05]} Nf6 {[%emt 0:00:34]} 8. Nf3 {[%emt 0:00:20]} Na6 {[%emt 0:00:16]} 9. O-O {[%emt 0:00:39]} Bg4 {[%emt 0:02:38]} 10. Nd2 {[%emt 0:00:57]} Bd7 {[%emt 0:01:46]} 11. Bd1 {[%emt 0:01:48]} Nc5 {[%emt 0:00:19]} 12. Bc2 {[%emt 0:00:11]} O-O {[%emt 0:00:37]} 13. b3 {[%emt 0:00:51]} c6 {[%emt 0:00:41]} 14. a3 {[%emt 0:00:52]} Qb6 {[%emt 0:01:14]} 15. Rb1 {[%emt 0:00:41]} cxd5 {[%emt 0:04:02]} 16. exd5 {[%emt 0:00:17]} Na6 {[%emt 0:00:41]} 17. b4 {[%emt 0:02:56]} axb4 {[%emt 0:00:08]} 18. axb4 {[%emt 0:00:03]} Rfc8 {[%emt 0:00:44]} 19. Qb2 {[%emt 0:00:38]} Qd4 {[%emt 0:02:23]} 20. Rbd1 {[%emt 0:02:18]} Qh4 {[%emt 0:02:32]} 21. Bd3 {[%emt 0:00:42]} Qd4 {[%emt 0:04:01]} 22. Be2 {[%emt 0:01:23]} Qb6 {[%emt 0:00:17]} 23. Rb1 {[%emt 0:00:57]} Bf5 {[%emt 0:00:11]} 24. Na4 {[%emt 0:00:06]} Qd8 {[%emt 0:00:41]} 25. Rbc1 {[%emt 0:00:13]} Nd7 {[%emt 0:00:24]} 26. Qb3 {[%emt 0:01:02]} Nb6 {[%emt 0:00:17]} 27. Nb2 {[%emt 0:00:03]} Nd7 {[%emt 0:00:13]} 28. Bd3 {[%emt 0:00:49]} Bxd3 {[%emt 0:00:39]} 29. Nxd3 {[%emt 0:00:00]} Qb6 {[%emt 0:00:06]} 30. Rb1 {[%emt 0:00:15]} Qd4 {[%emt 0:00:11]} 31. Rfe1 {[%emt 0:00:57]} Nf6 {[%emt 0:00:18]} 32. Rbd1 {[%emt 0:00:16]} e4 {[%emt 0:00:06]} 33. Nb2 {[%emt 0:00:04]} Re8 {[%emt 0:00:07]} 34. Nf1 {[%emt 0:00:22]} Qb6 {[%emt 0:00:02]} 35. b5 {[%emt 0:00:07]} Nc5 {[%emt 0:00:02]} 36. Qg3 {[%emt 0:00:01]} Ra2 {[%emt 0:00:05]} 37. Rb1 {[%emt 0:00:04]} Qa5 {[%emt 0:00:09]} 38. Qe3 {[%emt 0:00:10]} g6 {[%emt 0:00:03]} 39. Qd4 {[%emt 0:00:03]} Nfd7 {[%emt 0:00:03]} 40. Nd1 {[%emt 0:00:03]} Qxe1 {[%emt 0:00:09]} 41. Nc3 {[%emt 0:00:04]} Qxf2+ {[%emt 0:00:06]} 42. Qxf2 {[%emt 0:00:01]} Rxf2 {[%emt 0:00:01]} 43. Kxf2 {[%emt 0:00:00]} Ra8 {[%emt 0:00:05]} 44. Ne3 {[%emt 0:00:11]} f5 {[%emt 0:00:02]} 45. g3 {[%emt 0:00:02]} Kf7 {[%emt 0:00:05]} 46. Nc2 {[%emt 0:00:07]} Nb6 {[%emt 0:00:06]} 47. Ne3 {[%emt 0:00:07]} Ra3 {[%emt 0:00:01]} 48. Ncd1 {[%emt 0:00:06]} Ra2+ {[%emt 0:00:07]} 49. Kg1 {[%emt 0:00:04]} Kf6 {[%emt 0:00:05]} 50. Nc3 {[%emt 0:00:06]} Ra3 {[%emt 0:00:05]} 51. Ncd1 {[%emt 0:00:03]} Ke5 {[%emt 0:00:02]} 52. Kf2 {[%emt 0:00:04]} Ra2+ {[%emt 0:00:08]} 53. Kg1 {[%emt 0:00:08]} Kd4 {[%emt 0:00:08]} 54. Rc1 {[%emt 0:00:04]} Nd3 {[%emt 0:00:11]} 55. Rc3 {[%emt 0:00:11]} Na4 {[%emt 0:00:04]} 56. Rb3 {[%emt 0:00:05]} Ra1 {[%emt 0:00:06]} 57. Kg2 {[%emt 0:00:03]} Ke5 {[%emt 0:00:03]} 58. h4 {[%emt 0:00:02]} h6 {[%emt 0:00:04]} 59. Kh2 {[%emt 0:00:08]} g5 {[%emt 0:00:03]} 60. hxg5 {[%emt 0:00:01]} hxg5 {[%emt 0:00:00]} 61. Kg2 {[%emt 0:00:02]} f4 {[%emt 0:00:05]} 62. gxf4+ {[%emt 0:00:04]} gxf4 {[%emt 0:00:01]} 63. Ng4+ {[%emt 0:00:00]} Kd4 {[%emt 0:00:04]} 64. Ndf2 {[%emt 0:00:09]} Ra2 {[%emt 0:00:06]} 65. Kf1 {[%emt 0:00:07]} Nac5 {[%emt 0:00:05]} 66. Rb1 {[%emt 0:00:07]} e3 {[%emt 0:00:07]} 67. Nxd3 {[%emt 0:00:07]} Nxd3 {[%emt 0:00:05]} 68. c5 {[%emt 0:00:07]} e2+ {[%emt 0:00:06]} 69. Kg1 {[%emt 0:00:01]} Nxc5 {[%emt 0:00:11]} 70. Nf2 {[%emt 0:00:06]} Rd2 {[%emt 0:00:09]} 71. Kg2 {[%emt 0:00:06]} Kxd5 {[%emt 0:00:05]} 72. Kf3 {[%emt 0:00:03]} Nd3 {[%emt 0:00:06]} 73. Nxd3 {[%emt 0:00:03]} Rxd3+ {[%emt 0:00:01]} 74. Kxe2 {[%emt 0:00:00]} Re3+ {[%emt 0:00:01]} 75. Kf2 {[%emt 0:00:01]} Kc5 {[%emt 0:00:02]} 76. Rd1 {[%emt 0:00:05]} d5 {[%emt 0:00:09]} 77. b6 {[%emt 0:00:09]} d4 {[%emt 0:00:02]} 78. Rb1 {[%emt 0:00:18]} d3 {[%emt 0:00:04]} 79. Rc1+ {[%emt 0:00:06]} Kxb6 {[%emt 0:00:03]} 80. Rc4 {[%emt 0:00:01]} Re2+ {[%emt 0:00:12]} 81. Kf3 {[%emt 0:00:01]} Rh2 {[%emt 0:00:07]} 82. Rxf4 {[%emt 0:00:07]} d2 {[%emt 0:00:03]} 83. Rd4 {[%emt 0:00:02]} Kc5 {[%emt 0:00:02]} 84. Rd8 {[%emt 0:00:03]} b5 {[%emt 0:00:04]} 85. Ke3 {[%emt 0:00:02]} Kb4 {[%emt 0:00:03]} 86. Rd5 {[%emt 0:00:13]} Ka4 {[%emt 0:00:07]} 87. Rd4+ {[%emt 0:00:13]} b4 {[%emt 0:00:02]} 88. Rxd2 {[%emt 0:00:01]} Rxd2 {[%emt 0:00:02]} 89. Kxd2 {[%emt 0:00:00]} Ka3 {[%emt 0:00:01]} 0-1

[Event "USA-ch Women 2020"]
[Site "Saint Louis"]
[Date "2020.10.24"]
[Round "10.1"]
[White "Cervantes Landeiro, Thalia"]
[Black "Derakhshani, Dorsa"]
[Result "1/2-1/2"]
[ECO "E17"]
[WhiteElo "2311"]
[BlackElo "2270"]
[Annotator "RC"]
[PlyCount "130"]
[EventDate "2020.10.21"]
[EventType "tourn"]
[EventCountry "USA"]
[SourceTitle "playchess.com"]
[Source "ChessBase"]
[SourceQuality "1"]
[TimeControl "1500+5"]

1. d4 {[%emt 0:00:05]} Nf6 {[%emt 0:00:05]} 2. c4 {[%emt 0:00:03]} e6 {[%emt 0:00:02]} 3. Nf3 {[%emt 0:00:02]} b6 {[%emt 0:00:03]} 4. g3 {[%emt 0:00:02]} Bb7 {[%emt 0:00:01]} 5. Bg2 {[%emt 0:00:01]} Be7 {[%emt 0:00:02]} 6. O-O {[%emt 0:00:03]} O-O {[%emt 0:00:03]} 7. Re1 {[%emt 0:00:01]} d5 {[%emt 0:00:17]} 8. Ne5 {[%emt 0:02:18]} Nbd7 {[%emt 0:02:15]} 9. Nc3 {[%emt 0:00:52]} Ne4 {[%emt 0:04:58]} 10. Bf4 {[%emt 0:03:44]} Nxe5 {[%emt 0:04:42]} 11. Bxe5 {[%emt 0:01:16]} Bf6 {[%emt 0:00:31]} 12. Bf4 {[%emt 0:03:56]} Re8 {[%emt 0:03:41]} 13. Nb5 {[%emt 0:03:50]} e5 {[%emt 0:01:09]} 14. dxe5 {[%emt 0:01:31]} Bxe5 {[%emt 0:00:07]} 15. Bxe4 {[%emt 0:02:29]} dxe4 {[%emt 0:03:34]} 16. Bxe5 {[%emt 0:00:15]} Rxe5 {[%emt 0:00:16]} 17. Qxd8+ {[%emt 0:00:06]} Rxd8 {[%emt 0:00:00]} 18. Rad1 {[%emt 0:00:07]} Rf8 {[%emt 0:03:02]} 19. Rd4 {[%emt 0:01:37]} Re7 {[%emt 0:01:10]} 20. Red1 {[%emt 0:01:30]} a6 {[%emt 0:00:09]} 21. Nc3 {[%emt 0:00:06]} f5 {[%emt 0:00:10]} 22. e3 {[%emt 0:00:26]} Kf7 {[%emt 0:00:16]} 23. h4 {[%emt 0:00:09]} g6 {[%emt 0:00:06]} 24. Ne2 {[%emt 0:00:29]} h6 {[%emt 0:00:02]} 25. Kg2 {[%emt 0:01:03]} g5 {[%emt 0:00:06]} 26. Rh1 {[%emt 0:00:03]} Kg6 {[%emt 0:00:07]} 27. hxg5 {[%emt 0:00:16]} hxg5 {[%emt 0:00:00]} 28. Rhd1 {[%emt 0:00:01]} Bc6 {[%emt 0:00:12]} 29. Rd8 {[%emt 0:00:10]} Ree8 {[%emt 0:00:05]} 30. R8d2 {[%emt 0:00:11]} Re7 {[%emt 0:00:02]} 31. Nd4 {[%emt 0:00:04]} Bb7 {[%emt 0:00:06]} 32. Nb3 {[%emt 0:00:06]} f4 {[%emt 0:00:04]} 33. gxf4 {[%emt 0:00:15]} gxf4 {[%emt 0:00:01]} 34. Rd7 {[%emt 0:00:02]} f3+ {[%emt 0:00:07]} 35. Kg3 {[%emt 0:00:03]} Rff7 {[%emt 0:00:04]} 36. Rxe7 {[%emt 0:00:08]} Rxe7 {[%emt 0:00:00]} 37. Nd4 {[%emt 0:00:21]} Rh7 {[%emt 0:00:09]} 38. Rg1 {[%emt 0:00:08]} Kg5 {[%emt 0:00:04]} 39. Ne6+ {[%emt 0:00:10]} Kf5 {[%emt 0:00:04]} 40. Nd4+ {[%emt 0:00:02]} Kg5 {[%emt 0:00:01]} 41. Rd1 {[%emt 0:00:08]} Bc8 {[%emt 0:00:03]} 42. Nxf3+ {[%emt 0:00:14]} exf3 {[%emt 0:00:02]} 43. Rd5+ {[%emt 0:00:01]} Bf5 {[%emt 0:00:12]} 44. Kxf3 {[%emt 0:00:07]} Kf6 {[%emt 0:00:13]} 45. e4 {[%emt 0:00:09]} Be6 {[%emt 0:00:04]} 46. Rd4 {[%emt 0:00:02]} Rd7 {[%emt 0:00:02]} 47. Ke3 {[%emt 0:00:03]} c5 {[%emt 0:00:12]} 48. Rxd7 {[%emt 0:00:03]} Bxd7 {[%emt 0:00:00]} 49. f4 {[%emt 0:00:01]} Be6 {[%emt 0:00:03]} 50. b3 {[%emt 0:00:02]} b5 {[%emt 0:00:01]} 51. cxb5 {[%emt 0:00:13]} axb5 {[%emt 0:00:00]} 52. f5 {[%emt 0:00:05]} Bf7 {[%emt 0:00:17]} 53. Kf4 {[%emt 0:00:01]} Bh5 {[%emt 0:00:02]} 54. e5+ {[%emt 0:00:02]} Ke7 {[%emt 0:00:03]} 55. Ke4 {[%emt 0:00:04]} Be2 {[%emt 0:00:14]} 56. Kd5 {[%emt 0:00:10]} c4 {[%emt 0:00:02]} 57. bxc4 {[%emt 0:00:08]} Bxc4+ {[%emt 0:00:02]} 58. Kc5 {[%emt 0:00:01]} Bxa2 {[%emt 0:00:05]} 59. Kxb5 {[%emt 0:00:01]} Bb1 {[%emt 0:00:00]} 60. f6+ {[%emt 0:00:03]} Ke6 {[%emt 0:00:03]} 61. Kc5 {[%emt 0:00:02]} Bg6 {[%emt 0:00:12]} 62. Kd4 {[%emt 0:00:02]} Bh7 {[%emt 0:00:04]} 63. Kc5 {[%emt 0:00:02]} Bg6 {[%emt 0:00:01]} 64. Kd4 {[%emt 0:00:01]} Bh7 {[%emt 0:00:01]} 65. Kc5 {[%emt 0:00:01]} Bg6 {[%emt 0:00:01]} 1/2-1/2